fUST/lending_fUST_20250805
["ID","MTS","AMOUNT","RATE_DAILY","PERIOD"]
[377415140,1754399234219,2983.18013198,0.000249,2]
[377415141,1754399234327,2983.18013198,0.000249,2]
[377415142,1754399234511,1134.33395078,0.00025455,3]
[377415143,1754399234545,1848.8461812,0.00025455,3]
[377415144,1754399234652,2983.18013198,0.00026762,6]
[377415146,1754399243089,898.688019,0.00025891,2]
[377415147,1754399267251,1960.59079937,0.00026764,2]
[377415148,1754399267687,151.01770853,0.0002685,2]
[377415149,1754399286136,300.0,0.00026855,2]
[377415150,1754399297190,1857.67715992,0.00026846,2]
[377415151,1754399297215,10000.0,0.00026846,2]
[377415152,1754399297239,3971.07392208,0.00026846,2]
[377415153,1754399297700,201.83513898,0.00026238,5]
[377415154,1754399314150,355.82351202,0.00026846,2]
[377415155,1754399348781,2077.3151362,0.00025871,2]
[377415162,1754399393720,2019.64526415,0.000249,2]
[377415163,1754399393809,1374.30702657,0.000249,2]
[377415164,1754399393837,645.3382375,0.000249,2]
[377415165,1754399393891,2019.64526407,0.000249,2]
[377415166,1754399393983,2019.64526407,0.000249,2]
[377415167,1754399394064,2019.64526407,0.000249,2]
[377415168,1754399394161,2019.64526407,0.000249,2]
[377415169,1754399394261,1276.08070622,0.000249,2]
[377415170,1754399394290,743.56455785,0.000249,2]
[377415171,1754399394343,2019.64526407,0.000249,2]
[377415172,1754399394722,2019.64526407,0.00025455,3]
[377415173,1754399394831,2019.64526407,0.00026762,6]
[377415174,1754399417768,151.0,0.0002684,2]
[377415175,1754399425504,1000.0,0.00025871,2]
[377415176,1754399425595,151.0,0.0002684,2]
[377415177,1754399428963,151.0,0.0002684,2]
[377415178,1754399430263,151.0,0.0002684,2]
[377415179,1754399431193,151.0,0.0002684,2]
[377415190,1754399431964,-436.73195823,0.00026856,2]
[377415191,1754399431976,-64910.08387568,0.00026856,2]
[377415192,1754399432022,-61582.87450532,0.00026856,2]
[377415193,1754399432080,-4329.682668,0.00026856,2]
[377415194,1754399432091,-780.43,0.00026856,2]
[377415195,1754399432120,151.0,0.0002684,2]
[377415268,1754399433694,1291.49964994,0.0002684,2]
[377415269,1754399433721,10000.0,0.0002684,2]
[377415270,1754399433753,10000.0,0.0002684,2]
[377415271,1754399433789,897.04359158,0.0002684,2]
[377415272,1754399434921,151.0,0.0002684,2]
[377415273,1754399436381,151.0,0.0002684,2]
[377415274,1754399437262,151.0,0.0002684,2]
[377415277,1754399438213,151.0,0.0002684,2]
[377415278,1754399439207,151.0,0.0002684,2]
[377415282,1754399440058,-22806.0,0.00026856,2]
[377415283,1754399440070,-4240.63418161,0.00026856,2]
[377415284,1754399440099,151.0,0.0002684,2]
[377415285,1754399441454,151.0,0.0002684,2]
[377415301,1754399442978,151.0,0.0002684,2]
[377415305,1754399443005,-4583.65538832,0.00026856,2]
[377415307,1754399443015,-520.38972393,0.00026864,2]
[377415309,1754399443024,-500.0,0.00026873,2]
[377415311,1754399443034,-500.0,0.00026873,2]
[377415313,1754399443043,-500.0,0.00026873,2]
[377415315,1754399443053,-520.772333,0.00026873,2]
[377415317,1754399443062,-500.0,0.00026873,2]
[377415319,1754399443072,-500.0,0.00026873,2]
[377415321,1754399443081,-500.0,0.00026873,2]
[377415323,1754399443090,-506.2319895,0.0002689,2]
[377415325,1754399443099,-3465.21868604,0.00026946,2]
[377415327,1754399443111,-1134.70122693,0.00026946,2]
[377415395,1754399444359,151.0,0.0002684,2]
[377415396,1754399445250,151.0,0.0002684,2]
[377415404,1754399446063,-3314.45562802,0.00026946,2]
[377415405,1754399446073,-177.91175601,0.00026953,2]
[377415406,1754399446082,-2014.69424765,0.00026956,2]
[377415407,1754399448471,151.0,0.0002684,2]
[377415408,1754399448646,151.0,0.0002684,2]
[377415409,1754399448897,151.0,0.0002684,2]
[377415410,1754399449054,151.0,0.0002684,2]
[377415411,1754399449903,151.0,0.0002684,2]
[377415412,1754399460470,251.36407842,0.00025205,2]
[377415413,1754399461472,200.0,0.0003013,120]
[377415414,1754399470197,2407.27727042,0.00026855,2]
[377415415,1754399476993,247.96,0.0002684,7]
[377415416,1754399479303,157.106242,0.00026762,6]
[377415417,1754399479366,500.0,0.00026855,2]
[377415418,1754399479397,500.0,0.00026855,2]
[377415419,1754399479465,500.0,0.00026855,2]
[377415420,1754399479500,500.0,0.00026855,2]
[377415421,1754399479543,500.0,0.00026855,2]
[377415422,1754399479577,500.0,0.00026855,2]
[377415423,1754399479620,470.69201939,0.00026855,2]
[377415424,1754399480352,303.55679819,0.00026855,2]
[377415425,1754399480376,197.53792339,0.00026855,2]
[377415426,1754399489774,500.0,0.00026855,2]
[377415427,1754399489809,500.0,0.00026855,2]
[377415428,1754399489840,500.0,0.00026855,2]
[377415429,1754399489871,500.0,0.00026855,2]
[377415430,1754399489901,500.0,0.00026855,2]
[377415431,1754399489932,500.0,0.00026855,2]
[377415432,1754399489962,415.0,0.00026855,2]
[377415433,1754399489994,500.0,0.00026855,2]
[377415434,1754399490023,500.0,0.00026855,2]
[377415435,1754399490065,500.0,0.00026855,2]
[377415436,1754399490096,500.0,0.00026855,2]
[377415437,1754399490131,500.0,0.00026855,2]
[377415438,1754399490161,500.0,0.00026855,2]
[377415439,1754399490194,500.0,0.00026855,2]
[377415440,1754399490228,500.0,0.00026855,2]
[377415441,1754399490263,500.0,0.00026855,2]
[377415442,1754399491635,183.51974209,0.00026855,2]
[377415443,1754399505619,500.0,0.00026855,2]
[377415444,1754399505654,500.0,0.00026855,2]
[377415445,1754399505696,500.0,0.00026855,2]
[377415446,1754399505730,203.94233452,0.00026855,2]
[377415447,1754399505899,296.05766548,0.00026855,2]
[377415448,1754399505933,500.0,0.00026855,2]
[377415449,1754399505968,500.0,0.00026855,2]
[377415450,1754399506005,500.0,0.00026855,2]
[377415451,1754399506036,500.0,0.00026855,2]
[377415452,1754399506068,299.99999999,0.00026855,2]
[377415453,1754399506109,500.0,0.00026855,2]
[377415454,1754399506146,500.0,0.00026855,2]
[377415455,1754399506184,500.0,0.00026855,2]
[377415456,1754399506262,500.0,0.00026855,2]
[377415457,1754399522250,457.66655795,0.00024756,2]
[377415458,1754399524987,308.95,0.00026405,2]
[377415459,1754399538716,189.35763739,0.00026855,2]
[377415460,1754399544656,1383.0837871,0.000249,2]
[377415461,1754399544773,1383.08378685,0.000249,2]
[377415462,1754399544855,1383.08378685,0.000249,2]
[377415463,1754399544970,298.71677839,0.000249,2]
[377415464,1754399545001,1084.36700846,0.000249,2]
[377415465,1754399545064,1383.08378685,0.000249,2]
[377415466,1754399545155,1383.08378685,0.000249,2]
[377415467,1754399545229,1383.08378685,0.000249,2]
[377415468,1754399545333,1383.08378685,0.000249,2]
[377415469,1754399545673,1383.08378685,0.00025455,3]
[377415470,1754399545750,1383.08378685,0.00026762,6]
[377415472,1754399550119,617.13027044,0.00026756,2]
[377415473,1754399550144,10000.0,0.00026756,2]
[377415474,1754399566479,-229.12115582,0.00026755,2]
[377415475,1754399569155,-3.12671819,0.00026755,2]
[377415476,1754399569178,-209.77495428,0.00026755,2]
[377415477,1754399571976,-230.62900543,0.00026755,2]
[377415478,1754399580932,155.78506387,0.00025205,2]
[377415479,1754399594597,-189.35763739,0.00026655,2]
[377415480,1754399594621,-115.89645961,0.00026746,3]
[377415481,1754399600779,-256.76354039,0.00026746,3]
[377415482,1754399600804,-16.98993078,0.00026755,2]
[377415483,1754399603544,-300.0,0.00026746,2]
[377415484,1754399611189,-300.0,0.00026746,2]
[377415485,1754399612757,-189.35763739,0.00026655,2]
[377415486,1754399668277,427.46848236,0.00025944,2]
[377415487,1754399697075,220.41,0.00026151,7]
[377415488,1754399699536,936.27390657,0.000249,2]
[377415489,1754399699646,936.27390643,0.000249,2]
[377415490,1754399699755,936.27390643,0.000249,2]
[377415491,1754399699845,936.27390643,0.000249,2]
[377415492,1754399699930,936.27390643,0.000249,2]
[377415493,1754399700022,936.27390643,0.000249,2]
[377415494,1754399700065,-220.41,0.00026702,7]
[377415495,1754399700112,10.51326397,0.000249,2]
[377415496,1754399700145,925.76064246,0.000249,2]
[377415497,1754399700213,936.27390643,0.000249,2]
[377415498,1754399700329,936.27390643,0.00025455,3]
[377415500,1754399718466,287.44497257,0.00026384,20]
[377415501,1754399734001,5530.2385083,0.0002575,2]
[377415502,1754399738796,150.0,0.00024044,2]
[377415503,1754399771090,171.43,0.00026384,7]
[377415504,1754399774608,429.21,0.00026,10]
[377415505,1754399784745,157.878791,0.00025956,2]
[377415506,1754399791556,198.799771,0.00027397,120]
[377415507,1754399818820,-162.57351181,0.00026745,2]
[377415508,1754399818848,-78.38423892,0.00026745,2]
[377415509,1754399820812,-219.04224927,0.00026745,2]
[377415510,1754399823923,355.11103864,0.00024756,2]
[377415511,1754399826767,2877.6851511,0.0002575,2]
[377415512,1754399843774,-236.35928118,0.00026655,2]
[377415513,1754399844531,152.38,0.00026,7]
[377415514,1754399847331,-152.38,0.00026628,7]
[377415515,1754399847355,-307.62,0.00026655,2]
[377415516,1754399851762,-213.95841193,0.00026655,2]
[377415517,1754399854738,-361.83250672,0.00026655,2]
[377415518,1754399856434,669.47965639,0.000249,2]
[377415519,1754399856542,669.47965623,0.000249,2]
[377415520,1754399856621,669.47965623,0.000249,2]
[377415521,1754399856761,669.47965623,0.000249,2]
[377415522,1754399856798,669.47965623,0.000249,2]
[377415523,1754399856884,-460.0,0.00026655,2]
[377415524,1754399857038,669.47965623,0.000249,2]
[377415525,1754399857158,669.47965623,0.000249,2]
[377415526,1754399857261,669.47965623,0.000249,2]
[377415527,1754399857333,669.47965623,0.00025455,3]
[377415529,1754399860898,-305.08767993,0.00026655,2]
[377415530,1754399863068,-119.27525468,0.00026655,2]
[377415531,1754399863101,-350.6947084,0.00026662,2]
[377415532,1754399865916,-379.79580731,0.00026662,2]
[377415533,1754399914927,413.826654,0.00013699,2]
[377415534,1754399915198,413.826654,0.00020187,2]
[377415535,1754399916144,-170.60419269,0.00026676,2]
[377415536,1754399918291,-243.22246131,0.00026676,2]
[377415537,1754399918317,-202.57351181,0.00026745,2]
[377415538,1754399918343,-57.8447457,0.00026745,2]
[377415540,1754399920489,-166.29138438,0.00026745,2]
[377415541,1754399922696,-235.41440438,0.00026745,2]
[377415542,1754399925165,-40.44946554,0.00026745,2]
[377415543,1754399925190,-164.8355269,0.00026745,2]
[377415544,1754399925212,-10.84962858,0.00026745,2]
[377415545,1754399969860,256.48108942,0.00025943,2]
[377415547,1754400011039,475.69870571,0.000249,2]
[377415548,1754400011134,475.69870569,0.000249,2]
[377415549,1754400011234,475.69870569,0.000249,2]
[377415550,1754400011321,475.69870569,0.000249,2]
[377415551,1754400011418,475.69870569,0.000249,2]
[377415552,1754400011522,475.69870569,0.000249,2]
[377415553,1754400011695,475.69870569,0.000249,2]
[377415554,1754400011760,475.69870569,0.000249,2]
[377415555,1754400011806,475.69870569,0.00025455,3]
[377415556,1754400018000,-224.58559562,0.00026662,2]
[377415557,1754400023103,-236.57136159,0.00026662,2]
[377415558,1754400025814,-171.29568507,0.00026662,2]
[377415560,1754400029981,-460.0,0.00026662,2]
[377415561,1754400033585,-86.73214263,0.00026662,2]
[377415562,1754400037784,176.0,0.00025288,14]
[377415563,1754400070462,325.9,0.00026232,2]
[377415564,1754400118560,-206.97647299,0.00026662,2]
[377415565,1754400120802,-280.01720415,0.00026662,2]
[377415566,1754400125407,236.74069242,0.00024756,2]
[377415567,1754400125442,-300.0,0.00026646,2]
[377415568,1754400127207,-236.92105253,0.00026646,2]
[377415569,1754400129173,-154.745903,0.00026646,2]
[377415570,1754400132303,-195.14059369,0.00026646,2]
[377415571,1754400134963,251.0376184,0.00025739,2]
[377415572,1754400135405,-439.6578109,0.00026646,2]
[377415573,1754400137665,-163.85059341,0.00026646,2]
[377415574,1754400141006,-296.14940659,0.00026646,2]
[377415575,1754400145330,-330.21772062,0.00026646,2]
[377415576,1754400146976,-68.50144271,0.00026646,2]
[377415579,1754400175711,999.00664047,0.000249,2]
[377415580,1754400175801,999.00664025,0.000249,2]
[377415581,1754400175881,999.00664025,0.000249,2]
[377415582,1754400175960,999.00664025,0.000249,2]
[377415583,1754400176073,999.00664025,0.000249,2]
[377415584,1754400176158,999.00664025,0.000249,2]
[377415585,1754400176244,999.00664025,0.000249,2]
[377415586,1754400176384,999.00664025,0.000249,2]
[377415587,1754400176496,999.00664025,0.00025455,3]
[377415593,1754400226507,460.0,0.0003,120]
[377415594,1754400231870,463.3445492,0.0003,120]
[377415595,1754400242502,10000.0,0.00025739,2]
[377415596,1754400268468,24900.0,0.00025741,2]
[377415597,1754400297044,5257.33750811,0.0002,2]
[377415602,1754400325737,500.0,0.00029685,120]
[377415603,1754400326531,500.0,0.00029685,120]
[377415604,1754400327297,500.0,0.00029685,120]
[377415605,1754400328759,500.0,0.00029685,120]
[377415606,1754400329697,500.0,0.00029685,120]
[377415608,1754400330342,500.0,0.00029685,120]
[377415610,1754400338392,699.29039684,0.000249,2]
[377415611,1754400338498,699.2903967,0.000249,2]
[377415612,1754400338728,699.2903967,0.000249,2]
[377415613,1754400338850,699.2903967,0.000249,2]
[377415614,1754400338973,699.2903967,0.000249,2]
[377415615,1754400339068,699.2903967,0.000249,2]
[377415616,1754400339176,699.2903967,0.000249,2]
[377415617,1754400339282,699.2903967,0.000249,2]
[377415618,1754400339375,699.2903967,0.00025455,3]
[377415619,1754400339411,-265.36159108,0.00026646,2]
[377415621,1754400341739,-160.0,0.00026646,2]
[377415622,1754400345676,-286.83187948,0.00026646,2]
[377415624,1754400349476,-295.047,0.00026646,2]
[377415625,1754400353414,-140.22245655,0.00026646,2]
[377415626,1754400353437,-67.5495875,0.000267,2]
[377415627,1754400354111,161.0,0.00025288,16]
[377415628,1754400355298,-363.13512204,0.000267,2]
[377415629,1754400358915,-160.0,0.000267,2]
[377415630,1754400361557,-209.31529046,0.000267,2]
[377415631,1754400376077,1101.0,0.00030559,120]
[377415632,1754400397137,500.0,0.00029685,120]
[377415633,1754400397916,500.0,0.00029685,120]
[377415634,1754400398763,500.0,0.00029685,120]
[377415635,1754400399573,500.0,0.00029685,120]
[377415636,1754400401192,500.0,0.00029685,120]
[377415637,1754400401964,500.0,0.00029685,120]
[377415638,1754400404281,500.0,0.00029685,120]
[377415639,1754400405220,500.0,0.00029685,120]
[377415640,1754400405879,500.0,0.00029685,120]
[377415641,1754400406687,500.0,0.00029685,120]
[377415642,1754400407480,500.0,0.00029685,120]
[377415643,1754400408051,-154.67702901,0.0002664,2]
[377415644,1754400408235,500.0,0.00029685,120]
[377415645,1754400409066,500.0,0.00029685,120]
[377415646,1754400409797,500.0,0.00029685,120]
[377415647,1754400409862,-198.31669987,0.0002664,2]
[377415648,1754400410559,500.0,0.00029685,120]
[377415649,1754400411329,500.0,0.00029685,120]
[377415650,1754400412238,500.0,0.00029685,120]
[377415651,1754400412786,-158.0,0.0002664,2]
[377415652,1754400413213,500.0,0.00029685,120]
[377415653,1754400414006,500.0,0.00029685,120]
[377415654,1754400414420,-302.0,0.0002664,2]
[377415655,1754400414860,500.0,0.00029685,120]
[377415656,1754400415669,500.0,0.00029685,120]
[377415657,1754400416429,500.0,0.00029685,120]
[377415658,1754400417340,500.0,0.00029685,120]
[377415659,1754400418126,500.0,0.00029685,120]
[377415660,1754400418930,500.0,0.00029685,120]
[377415661,1754400419522,-179.483699,0.0002664,2]
[377415662,1754400419751,500.0,0.00029685,120]
[377415664,1754400420613,500.0,0.00029685,120]
[377415665,1754400421404,500.0,0.00029685,120]
[377415666,1754400421773,-165.33392695,0.0002664,2]
[377415667,1754400422284,500.0,0.00029685,120]
[377415668,1754400422965,500.0,0.00029685,120]
[377415669,1754400423759,500.0,0.00029685,120]
[377415670,1754400424542,500.0,0.00029685,120]
[377415671,1754400424581,-300.0,0.0002664,2]
[377415672,1754400425294,500.0,0.00029685,120]
[377415673,1754400426071,500.0,0.00029685,120]
[377415674,1754400426824,-248.15985857,0.0002664,2]
[377415675,1754400426860,500.0,0.00029685,120]
[377415676,1754400427606,854.1169837,0.00025726,2]
[377415677,1754400427638,500.0,0.00029685,120]
[377415678,1754400428393,500.0,0.00029685,120]
[377415679,1754400429277,500.0,0.00029685,120]
[377415680,1754400429942,500.0,0.00029685,120]
[377415681,1754400430443,-340.05604767,0.0002664,2]
[377415682,1754400430720,500.0,0.00029685,120]
[377415683,1754400431531,500.0,0.00029685,120]
[377415684,1754400432102,-8.52222413,0.0002664,2]
[377415685,1754400432125,-273.02121535,0.00026662,2]
[377415686,1754400432261,500.0,0.00029685,120]
[377415687,1754400433036,500.0,0.00029685,120]
[377415688,1754400433836,500.0,0.00029685,120]
[377415689,1754400433985,-217.72414914,0.00026662,2]
[377415690,1754400434654,500.0,0.00029685,120]
[377415691,1754400435616,500.0,0.00029685,120]
[377415692,1754400436453,500.0,0.00029685,120]
[377415693,1754400436544,-359.94257162,0.00026662,2]
[377415694,1754400437246,500.0,0.00029685,120]
[377415695,1754400438000,500.0,0.00029685,120]
[377415696,1754400438837,500.0,0.00029685,120]
[377415697,1754400439687,500.0,0.00029685,120]
[377415698,1754400440448,500.0,0.00029685,120]
[377415699,1754400441226,500.0,0.00029685,120]
[377415700,1754400442053,500.0,0.00029685,120]
[377415701,1754400442166,400.46799986,0.000265,2]
[377415702,1754400442904,500.0,0.00029685,120]
[377415703,1754400446715,500.0,0.00029685,120]
[377415704,1754400447486,500.0,0.00029685,120]
[377415705,1754400448058,158.34792763,0.0003,120]
[377415706,1754400448244,500.0,0.00029685,120]
[377415708,1754400449107,500.0,0.00029685,120]
[377415709,1754400450542,500.0,0.00029685,120]
[377415710,1754400451430,500.0,0.00029685,120]
[377415711,1754400452230,500.0,0.00029685,120]
[377415712,1754400453138,500.0,0.00029685,120]
[377415713,1754400454019,500.0,0.00029685,120]
[377415714,1754400454935,500.0,0.00029685,120]
[377415715,1754400455732,500.0,0.00029685,120]
[377415716,1754400456781,500.0,0.00029685,120]
[377415723,1754400459526,500.0,0.00029685,120]
[377415724,1754400460041,2040.63265768,0.000229,7]
[377415725,1754400460310,500.0,0.00029685,120]
[377415726,1754400463530,500.0,0.00029685,120]
[377415727,1754400464299,500.0,0.00029685,120]
[377415728,1754400465065,500.0,0.00029685,120]
[377415729,1754400466001,500.0,0.00029685,120]
[377415730,1754400466954,500.0,0.00029685,120]
[377415731,1754400467539,500.0,0.00029685,120]
[377415732,1754400468350,500.0,0.00029685,120]
[377415733,1754400469263,500.0,0.00029685,120]
[377415734,1754400470295,500.0,0.00029685,120]
[377415735,1754400471053,500.0,0.00029685,120]
[377415736,1754400471633,29666.00849381,0.00018,2]
[377415737,1754400473676,12754.8132214,0.00025736,2]
[377415744,1754400494578,1721.16117654,0.00019205,5]
[377415746,1754400496718,38739.89123388,0.00026,10]
[377415747,1754400507546,532.59507617,0.000249,2]
[377415748,1754400507588,532.59507616,0.000249,2]
[377415749,1754400507674,532.59507616,0.000249,2]
[377415750,1754400507961,532.59507616,0.000249,2]
[377415751,1754400508014,532.59507616,0.000249,2]
[377415752,1754400508149,532.59507616,0.000249,2]
[377415753,1754400508204,532.59507616,0.000249,2]
[377415754,1754400508241,532.59507616,0.000249,2]
[377415755,1754400508312,532.59507616,0.00025455,3]
[377415757,1754400514381,427.6020561,0.000265,2]
[377415758,1754400516990,553.36678825,0.0002469,10]
[377415759,1754400517129,161.92608892,0.0002,20]
[377415760,1754400517821,3018.47147774,0.0002,2]
[377415761,1754400518346,1265.07201991,0.00018,2]
[377415763,1754400518929,1698.37265603,0.00024,2]
[377415764,1754400519179,672.77095848,0.00025,2]
[377415765,1754400523802,152.14721938,0.00021,2]
[377415766,1754400523977,30765.82927208,0.0002,2]
[377415767,1754400524268,3315.09849587,0.00019,2]
[377415768,1754400525672,164.27917776,0.000248,30]
[377415769,1754400525817,11559.38184872,0.000215,2]
[377415770,1754400525881,90248.86349194,0.0002249,7]
[377415771,1754400525955,965.91439748,0.0002465,2]
[377415772,1754400526084,162.37450891,0.00024,2]
[377415773,1754400526530,366.11,0.00024,14]
[377415774,1754400526558,1000.0,0.000235,2]
[377415775,1754400526968,20200.0,0.00017,2]
[377415776,1754400527524,161.0,0.00026,5]
[377415777,1754400537708,500.0,0.00029685,120]
[377415778,1754400538490,500.0,0.00029685,120]
[377415779,1754400539247,500.0,0.00029685,120]
[377415780,1754400540010,500.0,0.00029685,120]
[377415781,1754400540822,500.0,0.00029685,120]
[377415782,1754400541592,500.0,0.00029685,120]
[377415783,1754400542413,500.0,0.00029685,120]
[377415784,1754400546820,500.0,0.00029685,120]
[377415785,1754400547621,500.0,0.00029685,120]
[377415786,1754400548397,500.0,0.00029685,120]
[377415787,1754400549170,500.0,0.00029685,120]
[377415789,1754400549920,500.0,0.00029685,120]
[377415790,1754400550696,500.0,0.00029685,120]
[377415791,1754400551450,500.0,0.00029685,120]
[377415792,1754400552260,500.0,0.00029685,120]
[377415795,1754400553036,500.0,0.00029685,120]
[377415796,1754400553838,500.0,0.00029685,120]
[377415797,1754400555103,500.0,0.00029685,120]
[377415798,1754400555970,500.0,0.00029685,120]
[377415799,1754400556756,500.0,0.00029685,120]
[377415800,1754400557523,500.0,0.00029685,120]
[377415802,1754400558294,500.0,0.00029685,120]
[377415803,1754400559104,500.0,0.00029685,120]
[377415805,1754400559880,500.0,0.00029685,120]
[377415806,1754400560649,500.0,0.00029685,120]
[377415807,1754400561405,500.0,0.00029685,120]
[377415808,1754400562170,500.0,0.00029685,120]
[377415809,1754400562950,500.0,0.00029685,120]
[377415810,1754400563713,500.0,0.00029685,120]
[377415811,1754400564489,500.0,0.00029685,120]
[377415812,1754400565259,414.89,0.00029685,120]
[377415813,1754400575364,153.88865365,0.00025874,2]
[377415816,1754400631602,500.0,0.00029685,120]
[377415843,1754400632234,-745.83335477,0.00026646,2]
[377415845,1754400632246,-321.47061987,0.00026646,2]
[377415847,1754400632255,-862.35288649,0.00026674,2]
[377415850,1754400632267,-1777.76819494,0.00026674,2]
[377415854,1754400632299,-2137.93895592,0.00026674,2]
[377415857,1754400632309,-1067.30397461,0.00026733,2]
[377415860,1754400632319,-277.0,0.00026735,2]
[377415863,1754400632328,-300.0,0.00026735,2]
[377415866,1754400632337,-635.73,0.00026736,3]
[377415868,1754400632346,-185.96,0.00026736,3]
[377415870,1754400632356,-557.9,0.00026736,3]
[377415872,1754400632366,-1200.0,0.00026739,2]
[377415874,1754400632375,-50000.0,0.0002674,2]
[377415876,1754400632385,-151.0,0.0002674,2]
[377415879,1754400632394,-250.0,0.0002674,2]
[377415881,1754400632404,-250.0,0.0002674,2]
[377415883,1754400632413,-151.0,0.0002674,2]
[377415885,1754400632423,-151.0,0.0002674,2]
[377415886,1754400632432,-250.0,0.0002674,2]
[377415887,1754400632530,-151.0,0.0002674,2]
[377415888,1754400632540,-151.0,0.0002674,2]
[377415889,1754400632550,-151.0,0.0002674,2]
[377415890,1754400632559,-151.0,0.0002674,2]
[377415891,1754400632569,-151.0,0.0002674,2]
[377415892,1754400632578,-151.0,0.0002674,2]
[377415893,1754400632588,-151.0,0.0002674,2]
[377415894,1754400632597,-151.0,0.0002674,2]
[377415895,1754400632606,-22188.54324152,0.0002674,2]
[377415896,1754400632615,-151.0,0.0002674,2]
[377415897,1754400632625,-151.0,0.0002674,2]
[377415898,1754400632634,-151.0,0.0002674,2]
[377415899,1754400632644,-151.0,0.0002674,2]
[377415900,1754400632653,-151.0,0.0002674,2]
[377415901,1754400632662,-176.142,0.00026745,14]
[377415902,1754400632672,-460.0,0.00026745,2]
[377415903,1754400632681,-88585.71065733,0.00026746,2]
[377415904,1754400632693,-412.47243504,0.00026746,2]
[377415905,1754400632705,-5124.36209299,0.00026746,2]
[377416077,1754400638053,-224.46,0.00026736,10]
[377416079,1754400638062,-500.0,0.00026738,2]
[377416081,1754400638072,-500.0,0.00026738,2]
[377416083,1754400638081,-500.0,0.00026738,2]
[377416085,1754400638090,-650.14547165,0.00026738,2]
[377416087,1754400638099,-151.0,0.0002674,2]
[377416089,1754400638109,-151.0,0.0002674,2]
[377416091,1754400638118,-151.0,0.0002674,2]
[377416092,1754400638127,-151.0,0.0002674,2]
[377416093,1754400638137,-151.0,0.0002674,2]
[377416094,1754400638146,-14492.01952834,0.00026746,2]
[377416098,1754400638221,-151.0,0.0002674,2]
[377416099,1754400638231,-51249.6913603,0.00026746,2]
[377416100,1754400638244,-1290.76934416,0.00026746,2]
[377416101,1754400638253,-521.62,0.00026746,3]
[377416102,1754400638262,-423.82,0.00026746,3]
[377416103,1754400638272,-211.91,0.00026746,3]
[377416104,1754400638281,-500.0,0.00026756,2]
[377416105,1754400638291,-359382.86972956,0.00026756,2]
[377416106,1754400638299,-532.59507616,0.00026762,6]
[377416107,1754400638308,-238.40429588,0.00026773,2]
[377416108,1754400638317,-500.0,0.00026773,2]
[377416109,1754400638326,-496.96624595,0.00026773,2]
[377416110,1754400638335,-178.12299723,0.00026773,2]
[377416111,1754400638344,-500.0,0.00026773,2]
[377416112,1754400638352,-500.0,0.00026773,2]
[377416113,1754400638361,-500.0,0.00026773,2]